[Event "*** Titled Tuesday Blitz"]
[Site "Chess.com"]
[Date "2020.04.28"]
[Round "8"]
[White "Stormeman100100"]
[Black "ajian"]
[Result "1-0"]
[WhiteElo "2525"]
[BlackElo "2362"]
[TimeControl "180+1"]
[EndTime "11:34:56 PDT"]
[Termination "Stormeman100100 won on time"]

1. e4 {[%clk 0:03:00.9]} 1... c5 {[%clk 0:02:59.7]} 2. Nf3 {[%clk 0:02:59.3]}
2... Nc6 {[%clk 0:02:59.7]} 3. d4 {[%clk 0:02:56.9]} 3... cxd4 {[%clk
0:03:00.6]} 4. Nxd4 {[%clk 0:02:57.7]} 4... Nf6 {[%clk 0:03:00.6]} 5. Nc3 {[%clk
0:02:57.1]} 5... e5 {[%clk 0:02:58.2]} 6. Ndb5 {[%clk 0:02:55.9]} 6... d6 {[%clk
0:02:58.5]} 7. Bg5 {[%clk 0:02:55.8]} 7... a6 {[%clk 0:02:59]} 8. Na3 {[%clk
0:02:56]} 8... b5 {[%clk 0:02:59.6]} 9. Bxf6 {[%clk 0:02:56.2]} 9... gxf6 {[%clk
0:03:00.5]} 10. Nd5 {[%clk 0:02:56.5]} 10... f5 {[%clk 0:03:01.2]} 11. Bxb5
{[%clk 0:02:52.7]} 11... axb5 {[%clk 0:03:01]} 12. Nxb5 {[%clk 0:02:52.4]} 12...
Ra4 {[%clk 0:03:01.5]} 13. c4 {[%clk 0:02:47.7]} 13... Rxc4 {[%clk 0:03:00.7]}
14. O-O {[%clk 0:02:42.9]} 14... Rg8 {[%clk 0:02:50.4]} 15. Nbc7+ {[%clk
0:02:39.3]} 15... Kd7 {[%clk 0:02:50.5]} 16. Qh5 {[%clk 0:02:38.8]} 16... Qg5
{[%clk 0:02:39.7]} 17. Qxf7+ {[%clk 0:02:30.4]} 17... Be7 {[%clk 0:02:17.9]} 18.
Nf6+ {[%clk 0:02:23.1]} 18... Qxf6 {[%clk 0:01:33.6]} 19. Qxg8 {[%clk
0:02:22.2]} 19... Rxe4 {[%clk 0:01:22.8]} 20. Nd5 {[%clk 0:02:18]} 20... Qf8
{[%clk 0:01:09.6]} 21. Qxf8 {[%clk 0:02:05.5]} 21... Bxf8 {[%clk 0:01:09.4]} 22.
Nf6+ {[%clk 0:02:06]} 22... Ke6 {[%clk 0:01:06.4]} 23. Nxe4 {[%clk 0:02:06.9]}
23... fxe4 {[%clk 0:01:07.3]} 24. Rac1 {[%clk 0:02:01.5]} 24... Bb7 {[%clk
0:00:55.2]} 25. Rfe1 {[%clk 0:01:51.8]} 25... d5 {[%clk 0:00:48.9]} 26. a3
{[%clk 0:01:52]} 26... Nd4 {[%clk 0:00:38.1]} 27. b4 {[%clk 0:01:50.1]} 27...
Ba6 {[%clk 0:00:31.2]} 28. Kh1 {[%clk 0:01:43.5]} 28... Bc4 {[%clk 0:00:24.9]}
29. Re3 {[%clk 0:01:39.6]} 29... Bh6 {[%clk 0:00:22.2]} 30. a4 {[%clk
0:01:36.4]} 30... Bxe3 {[%clk 0:00:16.5]} 31. fxe3 {[%clk 0:01:37.3]} 31... Nc6
{[%clk 0:00:12.9]} 32. b5 {[%clk 0:01:34.5]} 32... Na5 {[%clk 0:00:12.5]} 33.
Kg1 {[%clk 0:01:33]} 33... Kd6 {[%clk 0:00:12.4]} 34. Kf2 {[%clk 0:01:32.8]}
34... Kc5 {[%clk 0:00:12.1]} 35. Rb1 {[%clk 0:01:27.9]} 35... Nb3 {[%clk
0:00:07.3]} 36. g4 {[%clk 0:01:22.7]} 36... d4 {[%clk 0:00:07]} 37. h4 {[%clk
0:01:22.5]} 37... d3 {[%clk 0:00:04.2]} 38. g5 {[%clk 0:01:19.4]} 38... d2
{[%clk 0:00:04.1]} 39. Rd1 {[%clk 0:01:14.2]} 39... Bd3 {[%clk 0:00:04.2]} 40.
h5 {[%clk 0:01:10.6]} 40... Kd6 {[%clk 0:00:02.1]} 41. g6 {[%clk 0:01:09.9]}
41... hxg6 {[%clk 0:00:02.2]} 42. h6 {[%clk 0:01:09.5]} 1-0

[Event "*** Titled Tuesday Blitz"]
[Site "Chess.com"]
[Date "2020.04.28"]
[Round "8"]
[White "yamalchess"]
[Black "FROGGY64"]
[Result "0-1"]
[WhiteElo "2575"]
[BlackElo "2464"]
[TimeControl "180+1"]
[EndTime "11:34:58 PDT"]
[Termination "FROGGY64 won by resignation"]

1. d4 {[%clk 0:03:00.9]} 1... e6 {[%clk 0:02:59.2]} 2. c4 {[%clk 0:03:00.5]}
2... b6 {[%clk 0:02:59]} 3. Nc3 {[%clk 0:02:59.6]} 3... Bb4 {[%clk 0:02:58.6]}
4. Nf3 {[%clk 0:02:52.9]} 4... Bb7 {[%clk 0:02:58.1]} 5. Qc2 {[%clk 0:02:49.7]}
5... f5 {[%clk 0:02:57.3]} 6. a3 {[%clk 0:02:43.9]} 6... Bxc3+ {[%clk
0:02:56.5]} 7. Qxc3 {[%clk 0:02:43.9]} 7... Nf6 {[%clk 0:02:55.9]} 8. Bf4 {[%clk
0:02:41.2]} 8... O-O {[%clk 0:02:55.8]} 9. e3 {[%clk 0:02:40.7]} 9... Ne4 {[%clk
0:02:55.7]} 10. Qc2 {[%clk 0:02:40.3]} 10... d6 {[%clk 0:02:55.8]} 11. Be2
{[%clk 0:02:37.4]} 11... Nd7 {[%clk 0:02:55.7]} 12. O-O {[%clk 0:02:37.3]} 12...
Qe7 {[%clk 0:02:53.4]} 13. h3 {[%clk 0:02:24.2]} 13... Kh8 {[%clk 0:02:52.2]}
14. Rad1 {[%clk 0:02:19.3]} 14... e5 {[%clk 0:02:50.9]} 15. dxe5 {[%clk
0:02:17.3]} 15... dxe5 {[%clk 0:02:50.9]} 16. Rxd7 {[%clk 0:02:15.1]} 16... Qxd7
{[%clk 0:02:46.6]} 17. Nxe5 {[%clk 0:02:15.1]} 17... Qe7 {[%clk 0:02:42.6]} 18.
f3 {[%clk 0:02:07]} 18... Nc5 {[%clk 0:02:34.7]} 19. b4 {[%clk 0:02:01.3]} 19...
Ne6 {[%clk 0:02:34.3]} 20. Bh2 {[%clk 0:01:59.8]} 20... f4 {[%clk 0:02:33]} 21.
Bd3 {[%clk 0:01:44.4]} 21... Qg5 {[%clk 0:02:21.2]} 22. Ng4 {[%clk 0:01:16.9]}
22... fxe3 {[%clk 0:02:19.7]} 23. Bxh7 {[%clk 0:01:10]} 23... Nd4 {[%clk
0:02:19.4]} 24. Qg6 {[%clk 0:01:05.7]} 24... Qxg6 {[%clk 0:02:08.3]} 25. Bxg6
{[%clk 0:01:05]} 25... e2 {[%clk 0:02:06.3]} 26. Re1 {[%clk 0:01:04.9]} 26...
Bxf3 {[%clk 0:02:06.3]} 27. Ne5 {[%clk 0:01:03.2]} 27... Nc2 {[%clk 0:01:59.5]}
28. Bxc2 {[%clk 0:01:01]} 28... Bh5 {[%clk 0:01:53.6]} 29. g4 {[%clk 0:00:58.1]}
29... Be8 {[%clk 0:01:39]} 30. Rxe2 {[%clk 0:00:58]} 30... Rd8 {[%clk
0:01:39.5]} 31. Bg6 {[%clk 0:00:49.8]} 31... Kg8 {[%clk 0:01:35.2]} 32. Bf5
{[%clk 0:00:46.2]} 32... Rd1+ {[%clk 0:01:28.8]} 33. Kg2 {[%clk 0:00:45.3]}
33... Rd4 {[%clk 0:01:25.7]} 34. h4 {[%clk 0:00:44]} 34... g6 {[%clk 0:01:24]}
35. Be6+ {[%clk 0:00:43.7]} 35... Kg7 {[%clk 0:01:23.3]} 36. Nf3 {[%clk
0:00:41]} 36... Bc6 {[%clk 0:01:22.5]} 37. Re3 {[%clk 0:00:37.3]} 37... Rd2+
{[%clk 0:01:21.3]} 38. Kg3 {[%clk 0:00:35.1]} 38... Bxf3 {[%clk 0:01:21.4]} 39.
Rxf3 {[%clk 0:00:33.5]} 39... Rxf3+ {[%clk 0:01:21.9]} 40. Kxf3 {[%clk
0:00:33.4]} 40... Rxh2 {[%clk 0:01:22.5]} 41. h5 {[%clk 0:00:32.1]} 41... Ra2
{[%clk 0:01:22.4]} 42. c5 {[%clk 0:00:31.5]} 42... Rxa3+ {[%clk 0:01:22.5]} 43.
Kf4 {[%clk 0:00:32]} 43... Ra4 {[%clk 0:01:22.8]} 44. Kg5 {[%clk 0:00:31.3]}
44... gxh5 {[%clk 0:01:22.7]} 45. gxh5 {[%clk 0:00:31.1]} 45... Rxb4 {[%clk
0:01:22.9]} 46. h6+ {[%clk 0:00:30.9]} 46... Kh8 {[%clk 0:01:23.1]} 47. cxb6
{[%clk 0:00:30.8]} 47... cxb6 {[%clk 0:01:22.2]} 48. Kf6 {[%clk 0:00:30.7]}
48... a5 {[%clk 0:01:21.9]} 49. Ke5 {[%clk 0:00:30.5]} 49... a4 {[%clk
0:01:20.5]} 50. Kd6 {[%clk 0:00:30.5]} 50... a3 {[%clk 0:01:20.7]} 51. Kc6
{[%clk 0:00:30.9]} 51... Rb2 {[%clk 0:01:21.2]} 0-1

[Event "*** Titled Tuesday Blitz"]
[Site "Chess.com"]
[Date "2020.04.28"]
[Round "8"]
[White "monstertube"]
[Black "Boudicca64"]
[Result "1-0"]
[WhiteElo "2150"]
[BlackElo "1902"]
[TimeControl "180+1"]
[EndTime "11:34:58 PDT"]
[Termination "monstertube won by resignation"]

1. d4 {[%clk 0:03:00.4]} 1... Nf6 {[%clk 0:02:58.6]} 2. Nf3 {[%clk 0:02:58.7]}
2... e6 {[%clk 0:02:52.2]} 3. Bg5 {[%clk 0:02:51.2]} 3... h6 {[%clk 0:02:48.9]}
4. Bh4 {[%clk 0:02:49.2]} 4... Be7 {[%clk 0:02:48.6]} 5. e3 {[%clk 0:02:48.4]}
5... b6 {[%clk 0:02:48.9]} 6. c4 {[%clk 0:02:44.7]} 6... g5 {[%clk 0:02:48.8]}
7. Bg3 {[%clk 0:02:43.6]} 7... Bb7 {[%clk 0:02:49.3]} 8. Bd3 {[%clk 0:02:41.2]}
8... c5 {[%clk 0:02:47]} 9. Nc3 {[%clk 0:02:37.2]} 9... g4 {[%clk 0:02:39.5]}
10. Ne5 {[%clk 0:02:30.6]} 10... h5 {[%clk 0:02:38.8]} 11. Bf1 {[%clk
0:02:06.4]} 11... d6 {[%clk 0:01:07.3]} 12. Nd3 {[%clk 0:02:04.8]} 12... h4
{[%clk 0:01:05.4]} 13. Bf4 {[%clk 0:02:03.3]} 13... h3 {[%clk 0:01:05.4]} 14.
Rg1 {[%clk 0:01:59.9]} 14... hxg2 {[%clk 0:00:31.3]} 15. Bxg2 {[%clk 0:02:00.8]}
15... Bxg2 {[%clk 0:00:32.2]} 16. Rxg2 {[%clk 0:02:00]} 16... cxd4 {[%clk
0:00:33.1]} 17. exd4 {[%clk 0:01:58.5]} 17... d5 {[%clk 0:00:33.4]} 18. Nb5
{[%clk 0:01:32]} 18... Na6 {[%clk 0:00:10.4]} 19. Rc1 {[%clk 0:01:16.5]} 19...
dxc4 {[%clk 0:00:03.9]} 20. Rxc4 {[%clk 0:01:14.7]} 20... Nd5 {[%clk 0:00:04.4]}
21. Bg3 {[%clk 0:01:10.8]} 21... Kf8 {[%clk 0:00:03.9]} 22. Nc3 {[%clk 0:01:06]}
22... Nac7 {[%clk 0:00:02.3]} 23. Qxg4 {[%clk 0:00:53.5]} 23... Rc8 {[%clk
0:00:02]} 24. Bxc7 {[%clk 0:00:47.2]} 24... Nxc7 {[%clk 0:00:01.8]} 25. Qg7+
{[%clk 0:00:46.4]} 25... Ke8 {[%clk 0:00:01.9]} 26. Qxh8+ {[%clk 0:00:45.8]}
26... Kd7 {[%clk 0:00:02.8]} 27. Ne5+ {[%clk 0:00:43.8]} 27... Kd6 {[%clk
0:00:02.5]} 1-0

[Event "*** Titled Tuesday Blitz"]
[Site "Chess.com"]
[Date "2020.04.28"]
[Round "8"]
[White "MarcoRiehle"]
[Black "NemtsevIgor"]
[Result "1-0"]
[WhiteElo "2562"]
[BlackElo "2362"]
[TimeControl "180+1"]
[EndTime "11:35:00 PDT"]
[Termination "MarcoRiehle won by resignation"]

1. e4 {[%clk 0:03:00.9]} 1... c6 {[%clk 0:02:59.4]} 2. c4 {[%clk 0:03:00]} 2...
d5 {[%clk 0:02:59.4]} 3. exd5 {[%clk 0:03:00.9]} 3... cxd5 {[%clk 0:02:59.8]} 4.
cxd5 {[%clk 0:03:01.8]} 4... a6 {[%clk 0:03:00]} 5. Nc3 {[%clk 0:03:02.7]} 5...
Nf6 {[%clk 0:02:59.3]} 6. Nf3 {[%clk 0:03:02.8]} 6... Nxd5 {[%clk 0:02:59]} 7.
Bc4 {[%clk 0:03:02]} 7... e6 {[%clk 0:02:55.3]} 8. O-O {[%clk 0:03:01.4]} 8...
Be7 {[%clk 0:02:55.1]} 9. d4 {[%clk 0:02:59.3]} 9... O-O {[%clk 0:02:54.7]} 10.
Re1 {[%clk 0:02:59]} 10... Nxc3 {[%clk 0:02:47.5]} 11. bxc3 {[%clk 0:02:58.8]}
11... b5 {[%clk 0:02:47.6]} 12. Bd3 {[%clk 0:02:55.7]} 12... Bb7 {[%clk
0:02:47.8]} 13. a4 {[%clk 0:02:53.4]} 13... Nd7 {[%clk 0:02:15.6]} 14. axb5
{[%clk 0:02:50.2]} 14... axb5 {[%clk 0:02:15.7]} 15. Rxa8 {[%clk 0:02:51.1]}
15... Qxa8 {[%clk 0:02:15.4]} 16. Bxb5 {[%clk 0:02:50.4]} 16... Nf6 {[%clk
0:01:59.4]} 17. Bd3 {[%clk 0:02:45.9]} 17... Rc8 {[%clk 0:01:55.9]} 18. c4
{[%clk 0:02:43.7]} 18... Rd8 {[%clk 0:01:52.4]} 19. Be3 {[%clk 0:02:39.3]} 19...
Qa3 {[%clk 0:01:39.4]} 20. Bf1 {[%clk 0:02:31.7]} 20... Bb4 {[%clk 0:01:30]} 21.
Qa1 {[%clk 0:02:19.7]} 21... Qxa1 {[%clk 0:01:18.3]} 22. Rxa1 {[%clk 0:02:20.6]}
22... Bxf3 {[%clk 0:01:17.5]} 23. gxf3 {[%clk 0:02:16.2]} 23... Bc3 {[%clk
0:01:16.4]} 24. Rd1 {[%clk 0:02:16]} 24... h6 {[%clk 0:01:10.1]} 25. c5 {[%clk
0:02:11.7]} 25... Nd5 {[%clk 0:01:09]} 26. Rc1 {[%clk 0:02:08.4]} 26... Ba5
{[%clk 0:01:07.3]} 27. Ba6 {[%clk 0:02:02.8]} 27... f5 {[%clk 0:00:57.8]} 28. f4
{[%clk 0:01:49.8]} 28... Nc3 {[%clk 0:00:54.2]} 29. c6 {[%clk 0:01:39]} 29...
Nd5 {[%clk 0:00:48.4]} 30. Rb1 {[%clk 0:01:32.9]} 30... Bc7 {[%clk 0:00:42]} 31.
Bc4 {[%clk 0:01:29.5]} 31... Nxf4 {[%clk 0:00:33.8]} 32. Rb7 {[%clk 0:01:21.1]}
32... Bd6 {[%clk 0:00:28.4]} 33. Bxf4 {[%clk 0:01:16.8]} 33... Bxf4 {[%clk
0:00:28.5]} 34. Bxe6+ {[%clk 0:01:17.4]} 34... Kf8 {[%clk 0:00:24.5]} 35. c7
{[%clk 0:01:14]} 35... Bxc7 {[%clk 0:00:22.3]} 36. Rxc7 {[%clk 0:01:14.9]} 36...
Rxd4 {[%clk 0:00:21]} 37. Rf7+ {[%clk 0:01:15.3]} 37... Ke8 {[%clk 0:00:20.9]}
38. Rxg7 {[%clk 0:01:14.9]} 38... f4 {[%clk 0:00:19.7]} 39. Kg2 {[%clk
0:01:14.2]} 39... Rd6 {[%clk 0:00:19.1]} 40. Bg4 {[%clk 0:01:10.6]} 40... Kf8
{[%clk 0:00:17.3]} 41. Ra7 {[%clk 0:01:07.7]} 41... Rb6 {[%clk 0:00:14]} 42. Kf3
{[%clk 0:01:05.1]} 42... Rf6 {[%clk 0:00:14]} 43. Ra4 {[%clk 0:01:04.3]} 1-0

[Event "*** Titled Tuesday Blitz"]
[Site "Chess.com"]
[Date "2020.04.28"]
[Round "8"]
[White "DonPreuss"]
[Black "JakeCarlosBanawa"]
[Result "0-1"]
[WhiteElo "2186"]
[BlackElo "2309"]
[TimeControl "180+1"]
[EndTime "11:35:00 PDT"]
[Termination "JakeCarlosBanawa won by checkmate"]

1. d4 {[%clk 0:03:00.7]} 1... Nf6 {[%clk 0:02:59.5]} 2. Nc3 {[%clk 0:03:00.3]}
2... d5 {[%clk 0:02:57.4]} 3. e4 {[%clk 0:03:00.4]} 3... Nxe4 {[%clk 0:02:55.9]}
4. Nxe4 {[%clk 0:03:00]} 4... dxe4 {[%clk 0:02:56.8]} 5. Bc4 {[%clk 0:02:59.8]}
5... c6 {[%clk 0:02:34]} 6. c3 {[%clk 0:02:57.1]} 6... Nd7 {[%clk 0:02:26.2]} 7.
f3 {[%clk 0:02:53]} 7... e3 {[%clk 0:02:21.5]} 8. Bxe3 {[%clk 0:02:52.4]} 8...
Nf6 {[%clk 0:02:21.5]} 9. Ne2 {[%clk 0:02:49.8]} 9... Bf5 {[%clk 0:02:11.4]} 10.
Ng3 {[%clk 0:02:49.2]} 10... Bg6 {[%clk 0:02:10.9]} 11. O-O {[%clk 0:02:48.1]}
11... e6 {[%clk 0:02:10.3]} 12. f4 {[%clk 0:02:47.6]} 12... Nd5 {[%clk
0:02:08.1]} 13. Bd2 {[%clk 0:02:47.5]} 13... Bd6 {[%clk 0:02:04.2]} 14. Qf3
{[%clk 0:02:41.8]} 14... Qc7 {[%clk 0:01:59.3]} 15. f5 {[%clk 0:02:28.9]} 15...
Bxg3 {[%clk 0:01:47.5]} 16. fxg6 {[%clk 0:02:20.1]} 16... Bxh2+ {[%clk
0:01:46.9]} 17. Kf2 {[%clk 0:02:19.7]} 17... fxg6 {[%clk 0:01:42.6]} 18. Ke2
{[%clk 0:02:17.1]} 18... O-O-O {[%clk 0:01:30.3]} 19. Qh3 {[%clk 0:01:50.4]}
19... Kb8 {[%clk 0:01:25.7]} 20. Rf3 {[%clk 0:01:46]} 20... Bd6 {[%clk
0:01:17.8]} 21. Raf1 {[%clk 0:01:44.5]} 21... e5 {[%clk 0:01:14.6]} 22. Rf7
{[%clk 0:01:39.7]} 22... Qb6 {[%clk 0:01:12.3]} 23. Rxg7 {[%clk 0:01:15.1]}
23... exd4 {[%clk 0:01:03.2]} 24. Bxd5 {[%clk 0:01:10.1]} 24... cxd5 {[%clk
0:00:58.5]} 25. Rff7 {[%clk 0:01:09.1]} 25... Rde8+ {[%clk 0:00:44]} 26. Kd1
{[%clk 0:01:06.3]} 26... dxc3 {[%clk 0:00:34.8]} 27. Bxc3 {[%clk 0:00:42.9]}
27... Qg1+ {[%clk 0:00:25.7]} 28. Kd2 {[%clk 0:00:36.2]} 28... Qe1+ {[%clk
0:00:18]} 29. Kc2 {[%clk 0:00:35.3]} 29... Re2+ {[%clk 0:00:17.3]} 30. Kb3
{[%clk 0:00:16.8]} 30... Qd1# {[%clk 0:00:17.2]} 0-1

[Event "*** Titled Tuesday Blitz"]
[Site "Chess.com"]
[Date "2020.04.28"]
[Round "8"]
[White "CraiggoryC"]
[Black "vinodbhagwat1976"]
[Result "0-1"]
[WhiteElo "2056"]
[BlackElo "2222"]
[TimeControl "180+1"]
[EndTime "11:35:00 PDT"]
[Termination "vinodbhagwat1976 won on time"]

1. e4 {[%clk 0:03:00.9]} 1... e5 {[%clk 0:02:58.7]} 2. Nc3 {[%clk 0:03:00.6]}
2... Nf6 {[%clk 0:02:57.6]} 3. g3 {[%clk 0:03:00.3]} 3... Bc5 {[%clk 0:02:45.2]}
4. Bg2 {[%clk 0:02:59.7]} 4... d6 {[%clk 0:02:45.3]} 5. Nge2 {[%clk 0:02:57.6]}
5... Nc6 {[%clk 0:02:43.3]} 6. O-O {[%clk 0:02:56]} 6... O-O {[%clk 0:02:43.3]}
7. Na4 {[%clk 0:02:49.2]} 7... Bb6 {[%clk 0:02:42]} 8. d3 {[%clk 0:02:39]} 8...
Bg4 {[%clk 0:02:37.3]} 9. h3 {[%clk 0:02:35.9]} 9... Bd7 {[%clk 0:02:34.5]} 10.
Kh2 {[%clk 0:02:28.3]} 10... Qe7 {[%clk 0:02:18.9]} 11. f4 {[%clk 0:02:07.6]}
11... exf4 {[%clk 0:02:17.6]} 12. Nxf4 {[%clk 0:01:57.6]} 12... Ne5 {[%clk
0:02:11]} 13. Nxb6 {[%clk 0:01:55.5]} 13... axb6 {[%clk 0:02:10.5]} 14. Nh5
{[%clk 0:01:38.3]} 14... Nxh5 {[%clk 0:01:45.9]} 15. Qxh5 {[%clk 0:01:37.5]}
15... Ra5 {[%clk 0:01:33.9]} 16. Qe2 {[%clk 0:01:17]} 16... Ng6 {[%clk
0:01:21.9]} 17. Bd2 {[%clk 0:01:12.9]} 17... Raa8 {[%clk 0:01:18.9]} 18. a3
{[%clk 0:00:55.1]} 18... f6 {[%clk 0:01:16.7]} 19. Rae1 {[%clk 0:00:48.6]} 19...
Rae8 {[%clk 0:01:13.1]} 20. d4 {[%clk 0:00:34]} 20... Kh8 {[%clk 0:01:12.4]} 21.
Qc4 {[%clk 0:00:29.2]} 21... c6 {[%clk 0:01:09.7]} 22. Bb4 {[%clk 0:00:18.2]}
22... b5 {[%clk 0:01:09.3]} 23. Qb3 {[%clk 0:00:16.3]} 23... Be6 {[%clk
0:01:08.5]} 24. d5 {[%clk 0:00:15.3]} 24... Bg8 {[%clk 0:01:07.4]} 25. a4 {[%clk
0:00:14.5]} 25... c5 {[%clk 0:01:06.6]} 26. Bd2 {[%clk 0:00:12.5]} 26... b4
{[%clk 0:01:06.7]} 27. Qc4 {[%clk 0:00:12]} 27... Ne5 {[%clk 0:01:06]} 28. Qb5
{[%clk 0:00:11.1]} 28... Bf7 {[%clk 0:01:02.2]} 29. b3 {[%clk 0:00:10.5]} 29...
Bg6 {[%clk 0:01:01.9]} 30. Qe2 {[%clk 0:00:06.9]} 30... f5 {[%clk 0:00:55.8]}
31. exf5 {[%clk 0:00:06.1]} 31... Bxf5 {[%clk 0:00:55.7]} 32. Qf2 {[%clk
0:00:01.9]} 32... Qd7 {[%clk 0:00:52.5]} 0-1

[Event "*** Titled Tuesday Blitz"]
[Site "Chess.com"]
[Date "2020.04.28"]
[Round "8"]
[White "GMSrinath"]
[Black "Shoytan"]
[Result "1-0"]
[WhiteElo "2747"]
[BlackElo "2598"]
[TimeControl "180+1"]
[EndTime "11:35:01 PDT"]
[Termination "GMSrinath won by resignation"]

1. Nf3 {[%clk 0:03:00.9]} 1... Nf6 {[%clk 0:02:59.1]} 2. c4 {[%clk 0:03:00.7]}
2... g6 {[%clk 0:02:59.3]} 3. b3 {[%clk 0:03:00.7]} 3... Bg7 {[%clk 0:02:59.5]}
4. Bb2 {[%clk 0:03:01.4]} 4... O-O {[%clk 0:02:59.7]} 5. g3 {[%clk 0:03:02]}
5... d6 {[%clk 0:02:56.8]} 6. Bg2 {[%clk 0:03:02.6]} 6... e5 {[%clk 0:02:56.3]}
7. O-O {[%clk 0:03:03]} 7... Nc6 {[%clk 0:02:54.5]} 8. d3 {[%clk 0:03:00.6]}
8... Bf5 {[%clk 0:02:46.1]} 9. Nc3 {[%clk 0:02:50.4]} 9... Qd7 {[%clk 0:02:45]}
10. Nd5 {[%clk 0:02:36.9]} 10... Nxd5 {[%clk 0:02:33.8]} 11. cxd5 {[%clk
0:02:37.8]} 11... Ne7 {[%clk 0:02:34.3]} 12. Rc1 {[%clk 0:02:33.4]} 12... Rac8
{[%clk 0:02:18.9]} 13. Qd2 {[%clk 0:02:19.7]} 13... Bh3 {[%clk 0:02:11.5]} 14.
e4 {[%clk 0:02:13.4]} 14... Bxg2 {[%clk 0:02:01]} 15. Kxg2 {[%clk 0:02:14.3]}
15... f5 {[%clk 0:02:00.6]} 16. Ng5 {[%clk 0:01:57.2]} 16... Bh6 {[%clk
0:01:59.6]} 17. f4 {[%clk 0:01:56.2]} 17... Bxg5 {[%clk 0:01:58.2]} 18. fxg5
{[%clk 0:01:57.1]} 18... fxe4 {[%clk 0:01:56]} 19. dxe4 {[%clk 0:01:55.7]} 19...
Qg4 {[%clk 0:01:54.9]} 20. Qe3 {[%clk 0:01:52.9]} 20... Rxf1 {[%clk 0:01:53.2]}
21. Rxf1 {[%clk 0:01:53.8]} 21... Rf8 {[%clk 0:01:53.3]} 22. h3 {[%clk
0:01:41.2]} 22... Qd7 {[%clk 0:01:49.6]} 23. Rxf8+ {[%clk 0:01:34]} 23... Kxf8
{[%clk 0:01:50.5]} 24. Qxa7 {[%clk 0:01:34.9]} 24... Qb5 {[%clk 0:01:50.1]} 25.
Qe3 {[%clk 0:01:20.7]} 25... Ke8 {[%clk 0:01:45.6]} 26. Kf2 {[%clk 0:01:19.5]}
26... c6 {[%clk 0:01:39.2]} 27. dxc6 {[%clk 0:01:09.8]} 27... Nxc6 {[%clk
0:01:38.1]} 28. Qd2 {[%clk 0:01:05.7]} 28... Ke7 {[%clk 0:01:29]} 29. Bc3 {[%clk
0:00:55.7]} 29... Qc5+ {[%clk 0:01:22.7]} 30. Qe3 {[%clk 0:00:52.7]} 30... Qb5
{[%clk 0:01:11.5]} 31. h4 {[%clk 0:00:49.4]} 31... Qa6 {[%clk 0:01:08.6]} 32. a4
{[%clk 0:00:48.3]} 32... b5 {[%clk 0:01:07]} 33. Qd3 {[%clk 0:00:37.9]} 33...
Qa7+ {[%clk 0:01:03.1]} 34. Qe3 {[%clk 0:00:36.9]} 34... Nd4 {[%clk 0:00:58.3]}
35. Bxd4 {[%clk 0:00:28.3]} 35... exd4 {[%clk 0:00:57.4]} 36. Qf4 {[%clk
0:00:28.2]} 36... bxa4 {[%clk 0:00:41.3]} 37. Qf6+ {[%clk 0:00:27.6]} 37... Ke8
{[%clk 0:00:40.9]} 38. Qh8+ {[%clk 0:00:27.7]} 1-0

[Event "*** Titled Tuesday Blitz"]
[Site "Chess.com"]
[Date "2020.04.28"]
[Round "8"]
[White "temus_galaktionov"]
[Black "GOGIEFF"]
[Result "0-1"]
[WhiteElo "2785"]
[BlackElo "3001"]
[TimeControl "180+1"]
[EndTime "11:35:02 PDT"]
[Termination "GOGIEFF won by resignation"]

1. d4 {[%clk 0:03:00.9]} 1... d5 {[%clk 0:02:58.5]} 2. Nf3 {[%clk 0:03:00.5]}
2... Nf6 {[%clk 0:02:58]} 3. c4 {[%clk 0:03:01]} 3... c6 {[%clk 0:02:58.4]} 4.
Qb3 {[%clk 0:03:00.7]} 4... e6 {[%clk 0:02:56.4]} 5. Nc3 {[%clk 0:03:00]} 5...
dxc4 {[%clk 0:02:52.9]} 6. Qxc4 {[%clk 0:03:00.9]} 6... b5 {[%clk 0:02:53.2]} 7.
Qd3 {[%clk 0:03:01.3]} 7... Nbd7 {[%clk 0:02:49.8]} 8. Bg5 {[%clk 0:03:01]} 8...
h6 {[%clk 0:02:46.5]} 9. Bh4 {[%clk 0:03:00.1]} 9... Bb7 {[%clk 0:02:40.3]} 10.
e4 {[%clk 0:02:59.3]} 10... b4 {[%clk 0:02:40]} 11. Na4 {[%clk 0:02:58.6]} 11...
Qa5 {[%clk 0:02:40]} 12. b3 {[%clk 0:02:46.6]} 12... c5 {[%clk 0:02:22.9]} 13.
e5 {[%clk 0:02:46.4]} 13... Nd5 {[%clk 0:02:14.4]} 14. Qb5 {[%clk 0:02:34.1]}
14... Qc7 {[%clk 0:02:02.1]} 15. Rc1 {[%clk 0:02:13.9]} 15... Bc6 {[%clk
0:01:32.4]} 16. Qa6 {[%clk 0:02:08.6]} 16... Bxa4 {[%clk 0:01:12.3]} 17. Qxa4
{[%clk 0:02:05.3]} 17... Nc3 {[%clk 0:01:05.5]} 18. Qa6 {[%clk 0:01:55.4]} 18...
cxd4 {[%clk 0:01:00.2]} 19. Bb5 {[%clk 0:01:51.7]} 19... Bc5 {[%clk 0:00:57]}
20. O-O {[%clk 0:01:29.8]} 20... O-O {[%clk 0:00:55.2]} 21. Rfe1 {[%clk
0:01:24.2]} 21... Nb8 {[%clk 0:00:48.7]} 22. Qa4 {[%clk 0:00:48.5]} 22... Nxa4
{[%clk 0:00:47.2]} 23. Bxa4 {[%clk 0:00:49.4]} 23... g5 {[%clk 0:00:41.3]} 24.
Bg3 {[%clk 0:00:47.9]} 24... Qe7 {[%clk 0:00:41]} 25. Rc4 {[%clk 0:00:39]} 25...
Na6 {[%clk 0:00:39]} 26. Nxd4 {[%clk 0:00:37.1]} 26... Bxd4 {[%clk 0:00:38.7]}
27. Rxd4 {[%clk 0:00:38]} 27... Rfd8 {[%clk 0:00:38.7]} 28. Rd6 {[%clk
0:00:36.2]} 28... Nc5 {[%clk 0:00:38.7]} 29. Bc6 {[%clk 0:00:35.8]} 29... Rac8
{[%clk 0:00:38.7]} 30. Red1 {[%clk 0:00:34.4]} 30... Kg7 {[%clk 0:00:36.6]} 31.
h3 {[%clk 0:00:33.6]} 31... Nb7 {[%clk 0:00:29.7]} 32. Rd7 {[%clk 0:00:29.8]}
32... Rxc6 {[%clk 0:00:29.4]} 33. Rxe7 {[%clk 0:00:27.9]} 33... Rxd1+ {[%clk
0:00:29.9]} 34. Kh2 {[%clk 0:00:27.9]} 34... Rcc1 {[%clk 0:00:29.9]} 0-1